{"text_format":"3","workbook":"xlsx","n_sheets":14,"sheets":["Нүүр хуудас ","Холбоо барих","Агуулга","Алхам 1. Үнэлгээний хэмжээс","Алхам 1. Төслийн мөн чанар","Алхам 1. Оролцогчид","Алхам 1. Нөөц ","Алхам 1. Институцийн хүрээ","Алхам 1. Төслийн орчин","Алхам 2. Хэмжих хүснэгт","Алхам 3. Үнэлгээний хүснэгт","Алхам 4. Онооны хүснэгт, хураан","Алхам 4. Онооны хүснэгт,дэлгэрэ","Тайлан хэвлэх"],"not_rendered":{"images":75,"macros":1,"defined_names":7,"comments":1},"read":"whole","date_system":"1900"}

{"sheet":"Нүүр хуудас ","index":0,"n_rows":0,"n_cols":0,"rows_kept":0}

{"sheet":"Холбоо барих","index":1,"n_rows":36,"n_cols":6,"rows_kept":36,"merged":[[17,1,17,4],[17,6,17,9],[18,1,18,4],[18,6,18,9],[20,1,20,4],[20,6,20,9],[21,1,21,4],[21,6,21,9],[22,1,22,4],[22,6,22,9],[24,1,24,4],[24,6,24,9],[25,2,25,4],[25,6,25,9],[27,1,27,4],[27,6,27,9],[35,5,35,6]]}
{"$rows_empty":17}
[null,"Нэр"]
[null,"Эцгийн нэр"]
[]
[null,"Хот/Байгууллагын нэр"]
[null,"Хэлтэс"]
[null,"Албан тушаал"]
[]
[null,"Шилдэг туршлагыг шинжилсэн"]
[null,null,"Хот (Шилдэг туршлага)"]
[]
[null,"Мэйл"]
{"$rows_empty":7}
[{"$nulls":5},"CREDITS"]

{"sheet":"Агуулга","index":2,"n_rows":0,"n_cols":0,"rows_kept":0}

{"sheet":"Алхам 1. Үнэлгээний хэмжээс","index":3,"n_rows":0,"n_cols":0,"rows_kept":0}

{"sheet":"Алхам 1. Төслийн мөн чанар","index":4,"n_rows":57,"n_cols":5,"rows_kept":57,"merged":[[29,2,35,18]]}
{"$rows_empty":29}
[null,null,"Төслийн мөн чанар\n\nОрон нутагт сайн туршлагыг сонгон хэрэгжүүлэхдээ та төслийн ач холбогдол, хамаарал, ил тод тогтвортой байдал зэргийг үнэлж дүгнэх хэрэгтэй. Илүү тодорхой, дараах асуултуудыг авч үзээрэй. \n"]
{"$rows_empty":9}
[{"$nulls":3},"А. Ач холбогдол "]
[]
[{"$nulls":3},"1.    Өөрийн хотын асуудлыг шийдэх гэж оролдож буй асуудалд чинь энэ төсөл ач холбогдолтой, хамааралтай эсэх?"]
[]
[{"$nulls":3},"........................................................................................................................................................................................................................................."]
[]
[{"$nulls":3},"Б. Ил тод, Тодорхой байдал "]
[]
[{"$nulls":3},"1.    Төслийн зорилго, зорилт, үйл ажиллагаа, үр дүнг ав хэрэгжүүлэх алхам, тодорхой елементүүд болгон тодорхойлж тусгасан уу?"]
[]
[{"$nulls":3},"........................................................................................................................................................................................................................................."]
[]
[{"$nulls":3},"С. Тогтвортой хэрэгжилт "]
[]
[{"$nulls":3},"1.    Төсөл тогтвортой үргэлжилж чадах уу? Эхний хэрэгжилтнийн шатнаас цааш урт хугацаандаа төсөл үр өгөөжтэй байх уу? "]
[{"$nulls":4},"Чиглэсэн зорилтуудаас гадна хүн амд илүү үр өгөөжийг бий болгоход туслаж чадах уу? "]
[]
[{"$nulls":3},"........................................................................................................................................................................................................................................."]

{"sheet":"Алхам 1. Оролцогчид","index":5,"n_rows":75,"n_cols":6,"rows_kept":75,"merged":[[40,3,47,18]]}
{"$rows_empty":30}
[null,null," "]
{"$rows_empty":9}
[{"$nulls":3},"Оролцогчид \n\nОрон нутагт сайн туршлагыг сонгон хэрэгжүүлэхэдээ та төслийн зохицуулагчид, удирдлага, зорилтот хүн ам, боломжит нөлөөллийн бус бүлгүүд зэргийг үнэлж дүгнэх хэрэгтэй.  Илүү тодорхой, дараах асуултуудыг авч үзээрэй. \n"]
{"$rows_empty":9}
[{"$nulls":4},"А. Хэрэгжүүлэгч агентлагын төслийн мэргэжилтнүүд буюу  албаны хүмүүс"]
[]
[{"$nulls":4},"1.    Хэрэгжүүлэгч агентлагын төслийн мэргэжилтнүүд нь төслийг ойлгох хангалттай чадавхитай эсэх?"]
[{"$nulls":4},"2.    Хэрэгжүүлэгч агентлагын төслийн мэргэжилтнүүд энэ төслийг хэрэгжүүлэх хүчтэй хүсэл тэмүүлэлтэй эсэх?"]
[{"$nulls":4},"3.    Төсөл хариуцсан албаны хүн  нь төсөлд шаардлагатай өөрчлөлт гарахад түүнийг баталж чадах эрх мэдэлтэй эсэх?"]
[{"$nulls":4},"4.    Төсөл хариуцсан албаны хүн хэрэгжүүлэгч агентлаг болон байгууллагын дэмжлэгийг авч хамтран ажиллах чадвартай эсэх?"]
[{"$nulls":4},"5.    Төслийн гүйцэтгэлд суурилсан шагнал  урамшуулалын нөөц бий эсэх?"]
[]
[{"$nulls":5},".............................................................................................................................................................................................................................."]
[]
[{"$nulls":4},"Б. Манлайлал  "]
[]
[{"$nulls":4},"1.    Хэрэгжүүлэгч агентлагын тэргүүн удирдлага төслийг хэрэгжүүлэх хүсэл тэмүүлэл, сонирхол бий эсэх?"]
[{"$nulls":4},"2.    Дунд хугацаандаа энэ байгууллагын удирдлага тогтвортой өөрчлөгдөхгүй байж чадах эсэх? "]
[{"$nulls":4},"3.    Байгууллагын удирдлага улс төрийн талбарт байгууллагын гаднаас болон дотроосоо дэмжлэгийг авч чадах эсэх? "]
[{"$nulls":5},"............................................................................................................................................................................................................................"]
[]
[{"$nulls":4},"С. Нөлөөллийн бус бүлэг болон зорилтот хүн ам"]
[{"$nulls":4},"1.    Төслийн үр өгөөжийг хүртэх бүлэг нь Нөлөөллийн бус бүлгээс хэмжээ болон хүчний хувьд илүү том эсэх?"]
[{"$nulls":4},"2.    Төсөлд нөлөөлийн бус бүлгийн зүгээс  бодитой эсэргүүцэл байхгүй эсэх"]
[{"$nulls":4},"3.    Нөлөөллийн бус бүлгийнхэнийг төслийн хэрэгжилт болон явцад оролцуулахад төслийг хүлээж авах нь нэмэгдэх боломж бий эсэх? "]
[{"$nulls":4},"4.    Төслийг эсэргүүцэгч бүлгийг төслийг хүлээн авах боломжтой болгох (хууль эрх зүйн хүчин зүйл болон эдийн засгийн урамшуулал) "]
[{"$nulls":5},"бүхий үр дүнтэй арга хэрэгслүүд байгаа юу?"]
[]
[{"$nulls":5},"……………………………………………………………………………………………………………………………………………………………………………………………………………………………………………………"]

{"sheet":"Алхам 1. Нөөц ","index":6,"n_rows":74,"n_cols":4,"rows_kept":74,"merged":[[38,2,44,18]]}
{"$rows_empty":38}
[null,null,"               Нөөц \n\nОрон нутагт сайн туршлагыг сонгон хэрэгжүүлэхдээ та хүний нөөцийн болон санхүүгийн нөөцтэй эсэх, мөн техникийн, технологийн, мэдээллийн чадавхитай эсэх  зэргийг үнэлж дүгнэх хэрэгтэй. Илүү тодорхой, дараах асуултуудыг авч үзээрэй. \n"]
{"$rows_empty":8}
[{"$nulls":3},"А. Хүний нөөц"]
[]
[{"$nulls":3},"1.    Төслийг хэрэгжүүлэх боломжтой хүний нөөц болон институцийн нөөц байгаа юу?"]
[{"$nulls":3},"2.    Хэрэв шаардлагатай бол хүний нөөц болон институцийн нөөцийг нэмэгдүүлэх боломтой юу?"]
[]
[{"$nulls":3},"..............................................................................................................................................................................................................................................."]
[]
[{"$nulls":3},"Б.Санхүүгийн нөөц"]
[]
[{"$nulls":3},"1.    Байгууллагын дотроос болон гаднаас хангалттай санхүүгийн нөөцийг гаргах боломжтой юу?"]
[{"$nulls":3},"2.    Хэрэв шаардлагатай бол санхүүгийн нөөцийг нэмэгдүүлэх боломжтой юу?"]
[]
[{"$nulls":3},"............................................................................................................................................................................................................................................."]
[]
[{"$nulls":3},"С. Технологи "]
[]
[{"$nulls":3},"1.    Төслийг дотооддоо хэрэгжүүлэхэд технологи шаардлагатай юу?"]
[{"$nulls":3},"2.    Хэрэв үгүй бол, одоогийн дипломат харилцааны нөхцөл байдлын хүрээнд технологийг импортлож оруулж ирэхэд амархан уу?"]
[]
[{"$nulls":3},"............................................................................................................................................................................................................................................"]
[]
[{"$nulls":3},"Д. Мэдээлэл"]
[{"$nulls":3}," "]
[{"$nulls":3},"1.    Төслийг хэрэгжүүлэх боломжтой мэдээлэл, өгөгдөл байгаа юу? Энэ мэдээллүүд нь хэр найдвартай вэ?"]
[{"$nulls":3},"2.    Хэрэв үгүй бол, дата, мэдээллийн аюулгүй байдлыг хангаж чадах уу?"]
[]
[{"$nulls":3},"..........................................................................................................................................................................................................................................."]

{"sheet":"Алхам 1. Институцийн хүрээ","index":7,"n_rows":51,"n_cols":4,"rows_kept":51,"merged":[[30,2,37,14],[53,2,53,14]]}
{"$rows_empty":39}
[null,null,"А. Хууль тогтоомж"]
[]
[]
[null,null,"1.    Төслийг хэрэгжүүлэхэд шаардлагатай хууль болон тогтоол гарган  шинэ институцийн  зохицуулалт хийж танилцуулах боломжтой юу? "]
[]
[{"$nulls":3},"…………………………………………………………………………………………………………………………………………………………………………………………………………………………………………………………."]
[null,null,"Б.Тусламж дэмжлэг"]
[]
[]
[null,null,"1.    Энэ шинэ институцийн зохицуулалтыг хийхэд байгууллагын дотроос болон гаднаас туслалцаа авах хэрэгтэй юу?"]
[]
[{"$nulls":3},"…………………………………………………………………………………………………………………………………………………………………………………………………………………………………………………………"]

{"sheet":"Алхам 1. Төслийн орчин","index":8,"n_rows":66,"n_cols":5,"rows_kept":66}
{"$rows_empty":44}
[{"$nulls":3},"А. Дэд бүтэц"]
[]
[{"$nulls":3},"1.    Төслийг хэрэгжүүлэхэд шаардлагатай суурь байгууламжууд, технологи бий эсэх, боломжтой юу? "]
[{"$nulls":3},"2.    Хэрэв үгүй бол, төслийг танилцуулахдаа суурь байгууламжууд болон технологиор хангах боломжтой юу?"]
[]
[{"$nulls":4},"……………………………………………………………………………………………………………………………………………………………………………………………………"]
[]
[{"$nulls":3},"Б.Нийгмийн орчин "]
[]
[{"$nulls":3},"1.    Орчин үеийн стандарт нормууд бий эсэх, олон нийтийн зүгээс шинэ төслийг хүлээн авч чадах эсэх?"]
[{"$nulls":3},"2.    Манлайлагчдын санал бодол оролцоотойгоор олон нийтийг татан оролцуулж дэмжлэг авах боломжтой юу?"]
[]
[{"$nulls":4},"……………………………………………………………………………………………………………………………………………………………………………………………………"]
[]
[{"$nulls":3},"С.Улс төрийн орчин "]
[]
[{"$nulls":3},"1.    Төслийг засгийн газрын өндөр дээд албаны хүмүүсийн зүгээс болон улс төрийн нам бүхий  улс төрийн бүлгийн дэмжлэгийг авч чадах уу?"]
[{"$nulls":3},"2.    Улс төрийн бүлгийн дэмжлэг байхгүй, эсвэл дулимаг байсан ч төслийг тогтвортой үргэлжүүлэх боломжтой юу?"]
[{"$nulls":3},"3.    Төслийн хэрэгжилтэд сонгуулийн мөчлөг нөлөөлөх хүчин зүйл болох уу?"]
[{"$nulls":3},"4.    Улс төрийн намын сонгуулийн хугацаа дууссаны дараа төсөл тогтвортой үргэлжлэн явах эсэх нь ямар байх вэ?  "]
[]
[{"$nulls":4},"………………………………………………………………………………………………………………………………………………………………………………………………….."]

{"sheet":"Алхам 2. Хэмжих хүснэгт","index":9,"n_rows":37,"n_cols":5,"rows_kept":37,"merged":[[6,1,6,4],[9,1,9,4],[15,1,15,2],[20,1,20,2],[26,1,26,2],[35,1,35,2]]}
{"$rows_empty":7}
[null,"STEP 2."]
[null,"Гол хэмжигдэхүүнийг жинлэх хүснэгт",null,"ЦАЙВАР НОГООН өнгийн талбаруудыг хувиар тооцон бөглөнө үү    "]
[]
[null,"Төвшин 1","Төвшин 2","Төвшин 1 эзлэх хувь (%)","Төвшин 2 эзлэх хувь(%)"]
[null,1,"Төслийн мөн чанар"]
[null,null,"A. Ач холбогдол "]
[null,null,"B. Тодорхой байдал"]
[null,null,"C. Тогтвортой байдал",null,{"$f":"E16-E13-E14","v":{"v":1,"d":"100%"}}]
[{"$nulls":4},{"v":1,"d":"100%"}]
[null,2,"Оролцогчид"]
[null,null,"A. Хэрэгжүүлэгч агентлагын төслийн мэргэжилтнүүд"]
[null,null,"B. Манлайлал"]
[null,null,"C. Нөлөөллийн бүлэг/Зорилтот хүн ам",null,{"$f":"E21-E18-E19","v":{"v":1,"d":"100%"}}]
[{"$nulls":4},{"v":1,"d":"100%"}]
[null,3,"Нөөц "]
[null,null,"A. Хүний нөөц"]
[null,null,"B. Санхүүгийн нөөц"]
[null,null,"C. Технологи"]
[null,null,"D. Мэдээлэл",null,{"$f":"E27-E23-E24-E25","v":{"v":1,"d":"100%"}}]
[{"$nulls":4},{"v":1,"d":"100%"}]
[null,4,"Зохицуулалтын хүрээ"]
[null,null,"A. Хууль эрх зүй"]
[null,null,"B. Дэмжлэг",null,{"$f":"E31-E29","v":{"v":1,"d":"100%"}}]
[{"$nulls":4},{"v":1,"d":"100%"}]
[null,5,"Төслийн орчин",{"$f":"D37-D28-D22-D17-D12","v":{"v":1,"d":"100%"}}]
[null,null,"A. Дэд бүтэц"]
[null,null,"B. Нийгмийн орчин"]
[null,null,"C. Улс төрийн орчин",null,{"$f":"E36-E33-E34","v":{"v":1,"d":"100%"}}]
[{"$nulls":4},{"v":1,"d":"100%"}]
[null,null,"Нийт",{"v":1,"d":"100%"}]

{"sheet":"Алхам 3. Үнэлгээний хүснэгт","index":10,"n_rows":82,"n_cols":9,"rows_kept":82,"merged":[[8,1,8,3],[8,4,8,8],[13,1,15,1],[13,2,13,8],[14,2,14,3],[15,2,15,7],[16,1,18,1],[16,2,16,8],[17,2,17,3],[18,2,18,7],[19,1,21,1],[19,2,19,8],[20,2,20,3],[21,2,21,7],[22,1,22,8],[24,1,30,1],[24,2,24,8],[25,2,25,3],[26,2,26,3],[27,2,27,3],[28,2,28,3],[29,2,29,3],[30,2,30,7],[31,1,35,1],[31,2,31,8],[32,2,32,3],[33,2,33,3],[34,2,34,3],[35,2,35,7],[36,1,41,1],[36,2,36,8],[37,2,37,3],[38,2,38,3],[39,2,39,3],[40,2,40,3],[41,2,41,7],[42,1,42,8],[44,1,47,1],[44,2,44,8],[45,2,45,3],[46,2,46,3],[47,2,47,7],[48,1,51,1],[48,2,48,8],[49,2,49,3],[50,2,50,3],[51,2,51,7],[52,1,55,1],[52,2,52,8],[53,2,53,3],[54,2,54,3],[55,2,55,7],[56,1,59,1],[56,2,56,8],[57,2,57,3],[58,2,58,3],[59,2,59,7],[60,1,60,8],[62,1,64,1],[62,2,62,8],[63,2,63,3],[64,2,64,7],[65,1,67,1],[65,2,65,8],[66,2,66,3],[67,2,67,7],[68,1,68,8],[70,1,73,1],[70,2,70,8],[71,2,71,3],[72,2,72,3],[73,2,73,7],[74,1,77,1],[74,2,74,8],[75,2,75,3],[76,2,76,3],[77,2,77,7],[78,1,81,1],[78,2,78,8],[79,2,79,3],[80,2,80,3],[81,2,81,7]]}
{"$rows_empty":7}
[null,"АЛХАМ 3."]
[null,"Нутагшуулах хэрэгсэл/ Үнэлгээ",null,null,"Саарал талбар бүхий холбогдох нүдэнд \"1\" гэж бичээрэй"]
[{"$nulls":4},"Маш магадлал багатай","Магадлал бага","Магадлалтай","Их магадлалтай","Оноо"]
[{"$nulls":4},1,2,3,4]
[null,1,"Төслийн мөн чанар"]
[{"$nulls":3},"ЖИШЭЭ",null,1,null,null,{"$f":"SUMPRODUCT(E$11:H$11,E13:H13)","v":2}]
[null,null,"A. Ач холбогдол"]
[null,null," Бодлого/төсөл нь асуудлыг шийдвэрлэхэд холбоотой юу?",{"$nulls":5},{"$f":"SUMPRODUCT(E$11:H$11,E15:H15)","v":0}]
[null,null,"ДУНДАЖ",{"$nulls":5},{"$f":"AVERAGE($I$15)","v":0}]
[null,null,"B. Ил тод тодорхой байдал"]
[null,null,"Бодлого/төслийг тодорхой тодорхойлж, тодорхой элементүүдээс бүрдсэн үү?",{"$nulls":5},{"$f":"SUMPRODUCT(E$11:H$11,E18:H18)","v":0}]
[null,null,"ДУНДАЖ",{"$nulls":5},{"$f":"AVERAGE($I$18)","v":0}]
[null,null,"C. Тогтвортой байдал "]
[null,null,"Бодлогыг тогтвортой үргэлжлүүлэн хэрэгжүүлэх боломжтой юу?",{"$nulls":5},{"$f":"SUMPRODUCT(E$11:H$11,E21:H21)","v":0}]
[null,null,"ДУНДАЖ",{"$nulls":5},{"$f":"AVERAGE($I$21)","v":0}]
[]
[null,2,"Оролцогчид"]
[null,null,"A. Хэрэгжүүлэгч агентлагын төслийн мэргэжилтнүүд"]
[null,null,"Хэрэгжүүлэгч агентлагын төслийн мэргэжилтнүүд нь төслийг ойлгох хангалттай чадавхитай эсэх?",{"$nulls":5},{"$f":"SUMPRODUCT(E$11:H$11,E26:H26)","v":0}]
[null,null," Хэрэгжүүлэгч агентлагын төслийн мэргэжилтнүүд энэ төслийг хэрэгжүүлэх хүчтэй хүсэл тэмүүлэлтэй эсэх?",{"$nulls":5},{"$f":"SUMPRODUCT(E$11:H$11,E27:H27)","v":0}]
[null,null,"Төсөл хариуцсан албаны хүн  нь төсөлд шаардлагатай өөрчлөлт гарахад түүнийг баталж чадах эрх мэдэлтэй эсэх?",{"$nulls":5},{"$f":"SUMPRODUCT(E$11:H$11,E28:H28)","v":0}]
[null,null," Төсөл хариуцсан албаны хүн хэрэгжүүлэгч агентлаг болон байгууллагын дэмжлэгийг авч хамтран ажиллах чадвартай эсэх?",{"$nulls":5},{"$f":"SUMPRODUCT(E$11:H$11,E29:H29)","v":0}]
[null,null,"Төслийн гүйцэтгэлд суурилсан шагнал  урамшуулалын нөөц бий эсэх?",{"$nulls":5},{"$f":"SUMPRODUCT(E$11:H$11,E30:H30)","v":0}]
[null,null,"ДУНДАЖ",{"$nulls":5},{"$f":"AVERAGE($I$26:$I$30)","v":0}]
[null,null,"B. Манлайлал"]
[null,null,"Хэрэгжүүлэгч агентлагын тэргүүн, удирдлага төслийг хэрэгжүүлэх хүсэл тэмүүлэл, сонирхол бий эсэх?",{"$nulls":5},{"$f":"SUMPRODUCT(E$11:H$11,E33:H33)","v":0}]
[null,null,"Дунд хугацаандаа энэ байгууллагын удирдлага тогтвортой өөрчлөгдөхгүй байж чадах эсэх? ",{"$nulls":5},{"$f":"SUMPRODUCT(E$11:H$11,E34:H34)","v":0}]
[null,null,"Байгууллагын удирдлага улс төрийн талбарт байгууллагын гаднаас болон дотроосоо дэмжлэгийг авч чадах эсэх? ",{"$nulls":5},{"$f":"SUMPRODUCT(E$11:H$11,E35:H35)","v":0}]
[null,null,"ДУНДАЖ",{"$nulls":5},{"$f":"AVERAGE($I$33:$I$35)","v":0}]
[null,null,"C. Нөлөөллийн бүлэг/Зорилтот хүн ам"]
[null,null,"Төслийн үр өгөөжийг хүртэх бүлэг нь Нөлөөллийн бус бүлгээс хэмжээ болон хүчний хувьд илүү том эсэх?",{"$nulls":5},{"$f":"SUMPRODUCT(E$11:H$11,E38:H38)","v":0}]
[null,null,"Төсөлд нөлөөлийн бус бүлгийн зүгээс  бодитой эсэргүүцэл байхгүй эсэх",{"$nulls":5},{"$f":"SUMPRODUCT(E$11:H$11,E39:H39)","v":0}]
[null,null," Нөлөөллийн бус бүлгийнхэнийг төслийн хэрэгжилт болон явцад оролцуулахад төслийг хүлээж авах, дэмжих нь нэмэгдэх боломж бий эсэх? ",{"$nulls":5},{"$f":"SUMPRODUCT(E$11:H$11,E40:H40)","v":0}]
[null,null,"Төслийг эсэргүүцэгч бүлгийг төслийг хүлээн авах боломжтой болгох (хууль эрх зүйн хүчин зүйл болон эдийн засгийн урамшуулал) бүхий үр дүнтэй арга хэрэгслүүд байгаа юу?\n\n",{"$nulls":5},{"$f":"SUMPRODUCT(E$11:H$11,E41:H41)","v":0}]
[null,null,"ДУНДАЖ",{"$nulls":5},{"$f":"AVERAGE(I$38:I$41)","v":0}]
[]
[null,3,"Нөөц"]
[null,null,"A. Хүний нөөц"]
[null,null," Төслийг хэрэгжүүлэх боломжтой хүний нөөц болон институцийн нөөц байгаа юу?",{"$nulls":5},{"$f":"SUMPRODUCT(E$11:H$11,E46:H46)","v":0}]
[null,null," Хэрэв шаардлагатай бол хүний нөөц болон институцийн нөөцийг нэмэгдүүлэх боломтой юу?",{"$nulls":5},{"$f":"SUMPRODUCT(E$11:H$11,E47:H47)","v":0}]
[null,null,"ДУНДАЖ",{"$nulls":5},{"$f":"AVERAGE($I$46:$I$47)","v":0}]
[null,null,"B. Санхүүгийн нөөц"]
[null,null,"Байгууллагын дотроос болон гаднаас хангалттай санхүүгийн нөөцийг гаргах боломжтой юу?",{"$nulls":5},{"$f":"SUMPRODUCT(E$11:H$11,E50:H50)","v":0}]
[null,null,"Хэрэв шаардлагатай бол санхүүгийн нөөцийг нэмэгдүүлэх боломжтой юу?",{"$nulls":5},{"$f":"SUMPRODUCT(E$11:H$11,E51:H51)","v":0}]
[null,null,"ДУНДАЖ",{"$nulls":5},{"$f":"AVERAGE(I$50:I$51)","v":0}]
[null,null,"C. Технологи"]
[null,null," Төслийг дотооддоо хэрэгжүүлэхэд технологи шаардлагатай юу?",{"$nulls":5},{"$f":"SUMPRODUCT(E$11:H$11,E54:H54)","v":0}]
[null,null,"Хэрэв үгүй бол, одоогийн дипломат харилцааны нөхцөл байдлын хүрээнд технологийг импортлож оруулж ирэхэд амархан уу?",{"$nulls":5},{"$f":"SUMPRODUCT(E$11:H$11,E55:H55)","v":0}]
[null,null,"AVERAGE",{"$nulls":5},{"$f":"AVERAGE($I54:$I55)","v":0}]
[null,null,"D. Мэдээлэл"]
[null,null,"Төслийг хэрэгжүүлэх боломжтой мэдээлэл, өгөгдөл байгаа юу? Энэ мэдээллүүд нь хэр найдвартай вэ?",{"$nulls":5},{"$f":"SUMPRODUCT(E$11:H$11,E58:H58)","v":0}]
[null,null," Хэрэв үгүй бол, Дата, мэдээллийг хамгаалах боломжтой юу?",{"$nulls":5},{"$f":"SUMPRODUCT(E$11:H$11,E59:H59)","v":0}]
[null,null,"AVERAGE",{"$nulls":5},{"$f":"AVERAGE(I$58:I$59)","v":0}]
[]
[null,4,"Зохицуулалтын хүрээ"]
[null,null,"A. Хууль тогтоомж"]
[null,null,"Төслийг хэрэгжүүлэхэд, шаардлагатай хууль болон тогтоол гарган  шинэ бүтэц зохион байгуулалт, зохицуулалт хийж танилцуулах боломжтой юу? ",{"$nulls":5},{"$f":"SUMPRODUCT(E$11:H$11,E64:H64)","v":0}]
[null,null,"ДУНДАЖ",{"$nulls":5},{"$f":"AVERAGE($I$64)","v":0}]
[null,null,"B. Дэмжлэг"]
[null,null,"Энэ шинэ бүтэц зохион байгуулалтыг байгуулахад байгууллагын дотроос болон гаднаас туслалцаа авах хэрэгтэй юу?",{"$nulls":5},{"$f":"SUMPRODUCT(E$11:H$11,E67:H67)","v":0}]
[null,null,"ДУНДАЖ",{"$nulls":5},{"$f":"AVERAGE($I$67)","v":0}]
[]
[null,5,"Төслийн орчин"]
[null,null,"A. Дэд бүтэц"]
[null,null,"Төслийг хэрэгжүүлэхэд шаардлагатай суурь байгууламжууд, технологийн боломж бий юу? ",{"$nulls":5},{"$f":"SUMPRODUCT(E$11:H$11,E72:H72)","v":0}]
[null,null,"Хэрэв үгүй бол, төслийг танилцуулахдаа суурь байгууламжууд болон технологиор хангах боломжтой юу?",{"$nulls":5},{"$f":"SUMPRODUCT(E$11:H$11,E73:H73)","v":0}]
[null,null,"ДУНДАЖ",{"$nulls":5},{"$f":"AVERAGE(I$72:I$73)","v":0}]
[null,null,"B. Нийгмийн орчин"]
[null,null," Орчин үеийн стандарт нормууд бий эсэх, олон нийтийн зүгээс шинэ төслийг хүлээн авч чадах эсэх?",{"$nulls":5},{"$f":"SUMPRODUCT(E$11:H$11,E76:H76)","v":0}]
[null,null," Манлайлагчдын санал бодол оролцоотойгоор олон нийтийг татан оролцуулж дэмжлэг авах боломжтой юу?",{"$nulls":5},{"$f":"SUMPRODUCT(E$11:H$11,E77:H77)","v":0}]
[null,null,"ДУНДАЖ",{"$nulls":5},{"$f":"AVERAGE($I$76:$I$77)","v":0}]
[null,null,"C. Улс төрийн орчин"]
[null,null,"Төслийг хэрэгжүүлэхэд засгийн газрын өндөр  албаны хүмүүсийн зүгээс болон улс төрийн нам бүхий  улс төрийн бүлгийн дэмжлэгийг авч чадах уу?",{"$nulls":5},{"$f":"SUMPRODUCT(E$11:H$11,E80:H80)","v":0}]
[null,null,"Улс төрийн бүлгийн дэмжлэг байхгүй, эсвэл дулимаг байсан ч төслийг тогтвортой үргэлжүүлэх боломжтой юу?",{"$nulls":5},{"$f":"SUMPRODUCT(E$11:H$11,E81:H81)","v":0}]
[null,null,"ДУНДАЖ",{"$nulls":5},{"$f":"AVERAGE($I$80:$I$81)","v":0}]

{"sheet":"Алхам 4. Онооны хүснэгт, хураан","index":11,"n_rows":68,"n_cols":9,"rows_kept":68,"merged":[[6,1,6,7],[8,1,8,7],[9,1,9,7],[10,1,10,3],[12,1,12,3],[12,4,15,4],[12,5,12,7],[13,2,13,3],[14,1,15,1],[14,2,14,3],[15,2,15,3],[16,1,16,7],[18,1,18,3],[18,4,21,4],[18,5,18,7],[19,1,21,1],[19,2,19,3],[20,2,20,3],[21,2,21,3],[22,1,22,7],[24,1,24,3],[24,4,28,4],[24,5,24,7],[25,1,28,1],[25,2,25,3],[26,2,26,3],[27,2,27,3],[28,2,28,3],[29,1,29,7],[31,1,31,3],[31,4,33,4],[31,5,31,7],[32,1,33,1],[32,2,32,3],[33,2,33,3],[34,1,34,7],[36,1,36,3],[36,4,39,4],[36,5,36,7],[37,1,39,1],[37,2,37,3],[38,2,38,3],[39,2,39,3],[40,1,40,7],[41,2,41,3],[42,1,42,7],[46,3,46,6],[48,3,53,5],[57,3,61,3]]}
{"$rows_empty":7}
[null,"АЛХАМ 4."]
[null,"Нутагшуулах хэрэгсэл/ Онооны нарийвчилсан задаргаа"]
[]
[{"$nulls":4},"Эзлэх хувь\n(Төвшин 1)","Эзлэх хувь\n(Төвшин 2)","Дундаж \nҮнэлгээ","оноо\n( 4 өөс)","Оноо\n(%)"]
[null,1,"Төслийн мөн чанар",null,{"$f":"'Алхам 4. Онооны хүснэгт,дэлгэрэ'!E12","v":{"v":0,"d":"0.0%"}},null,null,{"$f":"'Алхам 4. Онооны хүснэгт,дэлгэрэ'!H12","v":{"$error":"#DIV/0!"}},{"$f":"(H12/4)","v":{"$error":"#DIV/0!"}}]
[]
[null,null,"A. Ач холбогдол",null,null,{"$f":"'Алхам 2. Хэмжих хүснэгт'!E13","v":{"v":0,"d":"0.0%"}},{"$f":"'Алхам 4. Онооны хүснэгт,дэлгэрэ'!G14","v":0}]
[null,null,"B. Ил тод тодорхой байдал",null,null,{"$f":"'Алхам 2. Хэмжих хүснэгт'!E14","v":{"v":0,"d":"0.0%"}},{"$f":"'Алхам 4. Онооны хүснэгт,дэлгэрэ'!G16","v":0}]
[null,null,"C. Тогтвортой байдал",null,null,{"$f":"'Алхам 2. Хэмжих хүснэгт'!E15","v":{"v":1,"d":"100.0%"}},{"$f":"'Алхам 4. Онооны хүснэгт,дэлгэрэ'!G18","v":0}]
[]
[null,2,"Оролцогчид",null,{"$f":"'Алхам 4. Онооны хүснэгт,дэлгэрэ'!E21","v":{"v":0,"d":"0.0%"}},null,null,{"$f":"'Алхам 4. Онооны хүснэгт,дэлгэрэ'!H21","v":{"$error":"#DIV/0!"}},{"$f":"(H18/4)","v":{"$error":"#DIV/0!"}}]
[]
[null,null,"A. Хэрэгжүүлэгч агентлагын төслийн мэргэжилтнүүд",null,null,{"$f":"'Алхам 2. Хэмжих хүснэгт'!E18","v":{"v":0,"d":"0.0%"}},{"$f":"'Алхам 4. Онооны хүснэгт,дэлгэрэ'!G23","v":0}]
[null,null,"B. Манлайлал",null,null,{"$f":"'Алхам 2. Хэмжих хүснэгт'!E19","v":{"v":0,"d":"0.0%"}},{"$f":"'Алхам 4. Онооны хүснэгт,дэлгэрэ'!G29","v":0}]
[null,null,"C. Нөлөөллийн бүлэг/Зорилтот хүн ам",null,null,{"$f":"'Алхам 2. Хэмжих хүснэгт'!E20","v":{"v":1,"d":"100.0%"}},{"$f":"'Алхам 4. Онооны хүснэгт,дэлгэрэ'!G33","v":0}]
[]
[null,3,"Нөөц",null,{"$f":"'Алхам 4. Онооны хүснэгт,дэлгэрэ'!E39","v":{"v":0,"d":"0.0%"}},{"v":0,"d":"0.0%"},null,{"$f":"'Алхам 4. Онооны хүснэгт,дэлгэрэ'!H39","v":{"$error":"#DIV/0!"}},{"$f":"(H24/4)","v":{"$error":"#DIV/0!"}}]
[]
[null,null,"A. Хүний нөөц",null,null,{"$f":"'Алхам 2. Хэмжих хүснэгт'!E23","v":{"v":0,"d":"0.0%"}},{"$f":"'Алхам 4. Онооны хүснэгт,дэлгэрэ'!G41","v":0}]
[null,null,"B. Санхүүгийн нөөц",null,null,{"$f":"'Алхам 2. Хэмжих хүснэгт'!E24","v":{"v":0,"d":"0.0%"}},{"$f":"'Алхам 4. Онооны хүснэгт,дэлгэрэ'!G44","v":0}]
[null,null,"C. Технологи",null,null,{"$f":"'Алхам 2. Хэмжих хүснэгт'!E25","v":{"v":0,"d":"0.0%"}},{"$f":"'Алхам 4. Онооны хүснэгт,дэлгэрэ'!G47","v":0}]
[null,null,"D. Мэдээлэл",null,null,{"$f":"'Алхам 2. Хэмжих хүснэгт'!E26","v":{"v":1,"d":"100.0%"}},{"$f":"'Алхам 4. Онооны хүснэгт,дэлгэрэ'!G50","v":0}]
[]
[null,4,"Зохицуулалтын хүрээ",null,{"$f":"'Алхам 4. Онооны хүснэгт,дэлгэрэ'!E54","v":{"v":0,"d":"0.0%"}},null,null,{"$f":"'Алхам 4. Онооны хүснэгт,дэлгэрэ'!H54","v":{"$error":"#DIV/0!"}},{"$f":"(H31/4)","v":{"$error":"#DIV/0!"}}]
[]
[null,null,"A. Хууль тогтоомж",null,null,{"$f":"'Алхам 2. Хэмжих хүснэгт'!E29","v":{"v":0,"d":"0.0%"}},{"$f":"'Алхам 4. Онооны хүснэгт,дэлгэрэ'!G56","v":0}]
[null,null,"B. Дэмжлэг",null,null,{"$f":"'Алхам 2. Хэмжих хүснэгт'!E30","v":{"v":1,"d":"100.0%"}},{"$f":"'Алхам 4. Онооны хүснэгт,дэлгэрэ'!G58","v":0}]
[]
[null,5,"Төслийн орчин",null,{"$f":"'Алхам 4. Онооны хүснэгт,дэлгэрэ'!E61","v":{"v":1,"d":"100.0%"}},null,null,{"$f":"'Алхам 4. Онооны хүснэгт,дэлгэрэ'!H61","v":0},{"$f":"(H36/4)","v":{"v":0,"d":"0.00%"}}]
[]
[null,null,"A. Дэд бүтэц",null,null,{"$f":"'Алхам 2. Хэмжих хүснэгт'!E33","v":{"v":0,"d":"0.0%"}},{"$f":"'Алхам 4. Онооны хүснэгт,дэлгэрэ'!G63","v":0}]
[null,null,"B. Нийгмийн орчин",null,null,{"$f":"'Алхам 2. Хэмжих хүснэгт'!E34","v":{"v":0,"d":"0.0%"}},{"$f":"'Алхам 4. Онооны хүснэгт,дэлгэрэ'!G66","v":0}]
[null,null,"C. Улс төрийн орчин",null,null,{"$f":"'Алхам 2. Хэмжих хүснэгт'!E35","v":{"v":1,"d":"100.0%"}},{"$f":"'Алхам 4. Онооны хүснэгт,дэлгэрэ'!G69","v":0}]
[]
[null,6,"Нийт ОНОО",null,{"$f":"SUM(E12,E18,E24,E31,E36)","v":{"v":1,"d":"100.0%"}},null,null,{"$f":"'Алхам 4. Онооны хүснэгт,дэлгэрэ'!I73","v":0},{"$f":"(H42/4)","v":{"v":0,"d":"0.00%"}}]
[]
[]
[]
[]
[{"$nulls":3},"                     Хэрэгслийн үр дүнг ойлгох, тайлбарлах "]
[]
[{"$nulls":3},"Та одоо Хэрэгслийг дуусгалаа. Танд  баяр хүргэе. Үлдсэн даалгавар бол хүрсэн үр дүндээ дүн шинжилгээ хийх, тайлбарлах явдал юм. Доорх тайлбар нь таны үр дүнг ойлгоход туслана. "]
[]
[]
[]
[]
[]
[]
[{"$nulls":3},"Хэрэгсэл нь танд хоёр үндсэн үр дүнд хүрэх боломжийг олгодог:"]
{"$rows_empty":11}
[{"$nulls":3},"                                                 Жишээ.  Нийт оноо 2.89949.    (2.89949/4 x 100 = 72.49 %"]

{"sheet":"Алхам 4. Онооны хүснэгт,дэлгэрэ","index":12,"n_rows":113,"n_cols":9,"rows_kept":113,"merged":[[6,1,6,8],[6,9,73,9],[8,1,8,8],[9,1,9,8],[10,1,10,3],[11,0,73,0],[12,1,12,3],[12,4,18,4],[12,5,12,7],[12,8,18,8],[13,2,13,3],[14,1,18,1],[15,2,15,3],[17,2,17,3],[19,1,19,8],[21,1,21,3],[21,4,36,4],[21,5,21,7],[21,8,36,8],[22,1,36,1],[22,2,22,3],[23,2,27,2],[28,2,28,3],[29,2,31,2],[32,2,32,3],[33,2,36,2],[37,1,37,8],[39,1,39,3],[39,4,51,4],[39,5,39,7],[39,8,51,8],[40,1,51,1],[40,2,40,3],[41,2,42,2],[43,2,43,3],[44,2,45,2],[46,2,46,3],[47,2,48,2],[49,2,49,3],[50,2,51,2],[52,1,52,8],[54,1,54,3],[54,4,58,4],[54,5,54,7],[54,8,58,8],[55,1,58,1],[55,2,55,3],[57,2,57,3],[59,1,59,8],[61,1,61,3],[61,4,70,4],[61,5,61,7],[61,8,70,8],[62,1,70,1],[62,2,62,3],[63,2,64,2],[65,2,65,3],[66,2,67,2],[68,2,68,3],[69,2,70,2],[71,1,71,8],[72,2,72,3],[73,1,73,8],[76,3,76,6],[78,3,83,5],[100,3,103,3],[105,3,109,3],[112,3,116,3]]}
{"$rows_empty":7}
[null,"STEP 4."]
[null,"Нутагшуулах хэрэгсэл/ Онооны нарийвчилсан  задаргаа"]
[]
[{"$nulls":4},"Эзлэх хувь\n(Төвшин 1)","Эзлэх хувь\n( Төвшин 2)","Үнэлгээний хувь","Оноо"]
[null,1,"Төслийн мөн чанар",null,{"$f":"SUM(F14,F16,F18)","v":{"v":0,"d":"0.0%"}},null,null,{"$f":"I12/E12","v":{"$error":"#DIV/0!"}},{"$f":"SUM(H14,H16,H18)","v":0}]
[{"$nulls":8},{"$f":"SUM(H15/F15)","v":{"$error":"#DIV/0!"}}]
[null,null,"A. Ач холбогдол",null,null,{"$f":"F15","v":{"v":0,"d":"0.0%"}},{"$f":"AVERAGE(G15)","v":0},{"$f":"H15","v":0}]
[{"$nulls":3}," Бодлого/төсөл нь асуудлыг шийдвэрлэхэд хамаатай юу?",null,{"$f":"'Алхам 2. Хэмжих хүснэгт'!D$12*'Алхам 2. Хэмжих хүснэгт'!E13","v":{"v":0,"d":"0.0%"}},{"$f":"'Алхам 3. Үнэлгээний хүснэгт'!I15","v":0},{"$f":"F15*G15","v":0}]
[null,null,"B. Ил тод байдал",null,null,{"$f":"F17","v":{"v":0,"d":"0.0%"}},{"$f":"AVERAGE(G17)","v":0},{"$f":"H17","v":0}]
[{"$nulls":3},"Бодлого/төслийг нарийн тодорхойлсон, тодорхой элементүүдээс бүрдсэн үү?",null,{"$f":"'Алхам 2. Хэмжих хүснэгт'!D$12*'Алхам 2. Хэмжих хүснэгт'!E14","v":{"v":0,"d":"0.0%"}},{"$f":"'Алхам 3. Үнэлгээний хүснэгт'!I18","v":0},{"$f":"G17*F17","v":0}]
[null,null,"C. Тогтвортой байдал ",null,null,{"$f":"F19","v":{"v":0,"d":"0.0%"}},{"$f":"AVERAGE(G19)","v":0},{"$f":"H19","v":0}]
[{"$nulls":3},"Бодлогыг тогтвортой үргэлжлүүлэн хэрэгжүүлэх боломжтой юу?",null,{"$f":"'Алхам 2. Хэмжих хүснэгт'!D$12*'Алхам 2. Хэмжих хүснэгт'!E15","v":{"v":0,"d":"0.0%"}},{"$f":"'Алхам 3. Үнэлгээний хүснэгт'!I21","v":0},{"$f":"G19*F19","v":0}]
[]
[null,2,"Оролцогчид",null,{"$f":"SUM(F33,F29,F23)","v":{"v":0,"d":"0.0%"}},null,null,{"$f":"I21/E21","v":{"$error":"#DIV/0!"}},{"$f":"SUM(H33,H29,H23)","v":0}]
[{"$nulls":8},{"$f":"H23/F23","v":{"$error":"#DIV/0!"}}]
[null,null,"A. Хэрэгжүүлэгч агентлагын төслийн мэргэжилтнүүд",null,null,{"$f":"'Алхам 2. Хэмжих хүснэгт'!D17*'Алхам 2. Хэмжих хүснэгт'!E18","v":{"v":0,"d":"0.0%"}},{"$f":"AVERAGE(G24:G28)","v":0},{"$f":"SUM(H$24:H$28)","v":0}]
[{"$nulls":3},"Хэрэгжүүлэгч агентлагын төслийн мэргэжилтнүүд нь төслийг ойлгох хангалттай чадавхитай эсэх?",null,{"$f":"F$23/5","v":{"v":0,"d":"0.0%"}},{"$f":"'Алхам 3. Үнэлгээний хүснэгт'!I26","v":0},{"$f":"G24*F24","v":0}]
[{"$nulls":3},"Хэрэгжүүлэгч агентлагын төслийн мэргэжилтнүүд энэ төслийг хэрэгжүүлэх хүчтэй хүсэл тэмүүлэлтэй эсэх?",null,{"$f":"F$23/5","v":{"v":0,"d":"0.0%"}},{"$f":"'Алхам 3. Үнэлгээний хүснэгт'!I27","v":0},{"$f":"G25*F25","v":0}]
[{"$nulls":3},"Төсөл хариуцсан албаны хүн  нь төсөлд шаардлагатай өөрчлөлт гарахад түүнийг баталж чадах эрх мэдэлтэй эсэх?",null,{"$f":"F$23/5","v":{"v":0,"d":"0.0%"}},{"$f":"'Алхам 3. Үнэлгээний хүснэгт'!I28","v":0},{"$f":"G26*F26","v":0}]
[{"$nulls":3}," Төсөл хариуцсан албаны хүн хэрэгжүүлэгч агентлаг болон байгууллагын дэмжлэгийг авч хамтран ажиллах чадвартай эсэх?",null,{"$f":"F$23/5","v":{"v":0,"d":"0.0%"}},{"$f":"'Алхам 3. Үнэлгээний хүснэгт'!I29","v":0},{"$f":"G27*F27","v":0}]
[{"$nulls":3},"Төслийн гүйцэтгэлд суурилсан шагнал  урамшуулалын нөөц бий эсэх?",null,{"$f":"F$23/5","v":{"v":0,"d":"0.0%"}},{"$f":"'Алхам 3. Үнэлгээний хүснэгт'!I30","v":0},{"$f":"G28*F28","v":0}]
[null,null,"B. Манлайлал",null,null,{"$f":"'Алхам 2. Хэмжих хүснэгт'!D17*'Алхам 2. Хэмжих хүснэгт'!E19","v":{"v":0,"d":"0.0%"}},{"$f":"AVERAGE(G30:G32)","v":0},{"$f":"SUM($H$30:$H$32)","v":0}]
[{"$nulls":3},"Хэрэгжүүлэгч агентлагын тэргүүн, удирдлага төслийг хэрэгжүүлэх хүсэл тэмүүлэл, сонирхол бий эсэх?",null,{"$f":"F$29/3","v":{"v":0,"d":"0.0%"}},{"$f":"'Алхам 3. Үнэлгээний хүснэгт'!I33","v":0},{"$f":"G30*F30","v":0}]
[{"$nulls":3},"Дунд хугацаандаа энэ байгууллагын удирдлага тогтвортой өөрчлөгдөхгүй байж чадах эсэх? ",null,{"$f":"F$29/3","v":{"v":0,"d":"0.0%"}},{"$f":"'Алхам 3. Үнэлгээний хүснэгт'!I34","v":0},{"$f":"G31*F31","v":0}]
[{"$nulls":3},"Байгууллагын удирдлага улс төрийн талбарт байгууллагын гаднаас болон дотроосоо дэмжлэгийг авч чадах эсэх? ",null,{"$f":"F$29/3","v":{"v":0,"d":"0.0%"}},{"$f":"'Алхам 3. Үнэлгээний хүснэгт'!I35","v":0},{"$f":"G32*F32","v":0}]
[null,null,"C. Нөлөөллийн бүлэг/Зорилтот хүн ам",null,null,{"$f":"'Алхам 2. Хэмжих хүснэгт'!D17*'Алхам 2. Хэмжих хүснэгт'!E20","v":{"v":0,"d":"0.0%"}},{"$f":"AVERAGE(G34:G37)","v":0},{"$f":"SUM($H$35:$H$37)","v":0}]
[{"$nulls":3},"Төслийн үр өгөөжийг хүртэх бүлэг нь Нөлөөллийн бус бүлгээс хэмжээ болон хүчний хувьд илүү том эсэх?",null,{"$f":"F$33/4","v":{"v":0,"d":"0.0%"}},{"$f":"'Алхам 3. Үнэлгээний хүснэгт'!I38","v":0},{"$f":"G34*F34","v":0}]
[{"$nulls":3},"Төсөлд нөлөөлийн бус бүлгийн зүгээс  бодитой эсэргүүцэл байхгүй эсэх",null,{"$f":"F$33/4","v":{"v":0,"d":"0.0%"}},{"$f":"'Алхам 3. Үнэлгээний хүснэгт'!I39","v":0},{"$f":"G35*F35","v":0}]
[{"$nulls":3},"Нөлөөллийн бус бүлгийнхэнийг төслийн хэрэгжилт болон явцад оролцуулахад төслийг хүлээж авах, дэмжих нь нэмэгдэх боломж бий эсэх? ",null,{"$f":"F$33/4","v":{"v":0,"d":"0.0%"}},{"$f":"'Алхам 3. Үнэлгээний хүснэгт'!I40","v":0},{"$f":"G36*F36","v":0}]
[{"$nulls":3},"Төслийг эсэргүүцэгч бүлгийг төслийг хүлээн авах боломжтой болгох (хууль эрх зүйн хүчин зүйл болон эдийн засгийн урамшуулал) бүхий үр дүнтэй арга хэрэгслүүд байгаа юу?",null,{"$f":"F$33/4","v":{"v":0,"d":"0.0%"}},{"$f":"'Алхам 3. Үнэлгээний хүснэгт'!I42","v":0},{"$f":"G37*F37","v":0}]
[]
[null,3,"Нөөц",null,{"$f":"SUM(F50,F47,F44,F41)","v":{"v":0,"d":"0.0%"}},{"v":0,"d":"0.0%"},null,{"$f":"I39/E39","v":{"$error":"#DIV/0!"}},{"$f":"SUM(H50,H47,H44,H41)","v":0}]
[{"$nulls":8},{"$f":"H41/F41","v":{"$error":"#DIV/0!"}}]
[null,null,"A. Хүний нөөц",null,null,{"$f":"'Алхам 2. Хэмжих хүснэгт'!D22*'Алхам 2. Хэмжих хүснэгт'!E23","v":{"v":0,"d":"0.0%"}},{"$f":"AVERAGE(G42:G43)","v":0},{"$f":"SUM($H$42:$H$43)","v":0}]
[{"$nulls":3},"Төслийг хэрэгжүүлэх боломжтой хүний нөөц болон институцийн нөөц байгаа юу?",null,{"$f":"F$41/2","v":{"v":0,"d":"0.0%"}},{"$f":"'Алхам 3. Үнэлгээний хүснэгт'!I46","v":0},{"$f":"G42*F42","v":0}]
[{"$nulls":3}," Хэрэв шаардлагатай бол хүний нөөц болон институцийн нөөцийг нэмэгдүүлэх боломтой юу?",null,{"$f":"F$41/2","v":{"v":0,"d":"0.0%"}},{"$f":"'Алхам 3. Үнэлгээний хүснэгт'!I47","v":0},{"$f":"G43*F43","v":0}]
[null,null,"B. Санхүүгийн нөөц",null,null,{"$f":"'Алхам 2. Хэмжих хүснэгт'!D22*'Алхам 2. Хэмжих хүснэгт'!E24","v":{"v":0,"d":"0.0%"}},{"$f":"AVERAGE(G45:G46)","v":0},{"$f":"SUM($H$45:$H$46)","v":0}]
[{"$nulls":3},"Байгууллагын дотроос болон гаднаас хангалттай санхүүгийн нөөцийг гаргах боломжтой юу?",null,{"$f":"F$44/2","v":{"v":0,"d":"0.0%"}},{"$f":"'Алхам 3. Үнэлгээний хүснэгт'!I50","v":0},{"$f":"G45*F45","v":0}]
[{"$nulls":3},"Хэрэв шаардлагатай бол санхүүгийн нөөцийг нэмэгдүүлэх боломжтой юу?",null,{"$f":"F$44/2","v":{"v":0,"d":"0.0%"}},{"$f":"'Алхам 3. Үнэлгээний хүснэгт'!I51","v":0},{"$f":"G46*F46","v":0}]
[null,null,"C. Технологи",null,null,{"$f":"'Алхам 2. Хэмжих хүснэгт'!D22*'Алхам 2. Хэмжих хүснэгт'!E25","v":{"v":0,"d":"0.0%"}},{"$f":"AVERAGE(G48:G49)","v":0},{"$f":"SUM(H48:H49)","v":0}]
[{"$nulls":3}," Төслийг дотооддоо хэрэгжүүлэхэд технологи шаардлагатай юу?",null,{"$f":"F$47/2","v":{"v":0,"d":"0.0%"}},{"$f":"'Алхам 3. Үнэлгээний хүснэгт'!I54","v":0},{"$f":"G48*F48","v":0}]
[{"$nulls":3},"Хэрэв үгүй бол, одоогийн дипломат харилцааны нөхцөл байдлын хүрээнд технологийг импортлож оруулж ирэхэд хялбар уу?",null,{"$f":"F$47/2","v":{"v":0,"d":"0.0%"}},{"$f":"'Алхам 3. Үнэлгээний хүснэгт'!I55","v":0},{"$f":"G49*F49","v":0}]
[null,null,"D. Мэдээлэл",null,null,{"$f":"'Алхам 2. Хэмжих хүснэгт'!D22*'Алхам 2. Хэмжих хүснэгт'!E26","v":{"v":0,"d":"0.0%"}},{"$f":"AVERAGE(G51:G52)","v":0},{"$f":"SUM(H51:H52)","v":0}]
[{"$nulls":3},"Төслийг хэрэгжүүлэх боломжтой мэдээлэл, өгөгдөл байгаа юу? Энэ мэдээллүүд нь хэр найдвартай вэ?",null,{"$f":"F$50/2","v":{"v":0,"d":"0.0%"}},{"$f":"'Алхам 3. Үнэлгээний хүснэгт'!I58","v":0},{"$f":"G51*F51","v":0}]
[{"$nulls":3},"Дата, мэдээллийг хамгаалах боломжтой юу?",null,{"$f":"F$50/2","v":{"v":0,"d":"0.0%"}},{"$f":"'Алхам 3. Үнэлгээний хүснэгт'!I59","v":0},{"$f":"G52*F52","v":0}]
[]
[null,4,"Зохицуулалтын хүрээ",null,{"$f":"SUM(F56,F58)","v":{"v":0,"d":"0.0%"}},null,null,{"$f":"I54/E54","v":{"$error":"#DIV/0!"}},{"$f":"SUM(H56,H58)","v":0}]
[{"$nulls":8},{"$f":"H56/F56","v":{"$error":"#DIV/0!"}}]
[null,null,"A. Хууль тогтоомж",null,null,{"$f":"'Алхам 2. Хэмжих хүснэгт'!D28*'Алхам 2. Хэмжих хүснэгт'!E29","v":{"v":0,"d":"0.0%"}},{"$f":"AVERAGE(G57)","v":0},{"$f":"H57","v":0}]
[{"$nulls":3},"Төслийг хэрэгжүүлэхэд, шаардлагатай хууль, тогтоол гарган  шинэ бүтэц зохион байгуулалт, зохицуулалт хийж танилцуулах боломжтой юу? ",null,{"$f":"F56","v":{"v":0,"d":"0.0%"}},{"$f":"'Алхам 3. Үнэлгээний хүснэгт'!I64","v":0},{"$f":"G57*F57","v":0}]
[null,null,"B. Дэмжлэг",null,null,{"$f":"'Алхам 2. Хэмжих хүснэгт'!D28*'Алхам 2. Хэмжих хүснэгт'!E30","v":{"v":0,"d":"0.0%"}},{"$f":"AVERAGE(G59)","v":0},{"$f":"H59","v":0}]
[{"$nulls":3},"Энэ шинэ бүтэц зохион байгуулалтыг байгуулахад байгууллагын дотроос болон гаднаас туслалцаа авах хэрэгтэй юу?",null,{"$f":"F58","v":{"v":0,"d":"0.0%"}},{"$f":"'Алхам 3. Үнэлгээний хүснэгт'!I67","v":0},{"$f":"G59*F59","v":0}]
[]
[null,5,"Төслийн орчин",null,{"$f":"SUM(F63,F66,F69)","v":{"v":1,"d":"100.0%"}},null,null,{"$f":"I61/E61","v":0},{"$f":"SUM(H63,H66,H69)","v":0}]
[{"$nulls":8},{"$f":"H63/F63","v":{"$error":"#DIV/0!"}}]
[null,null,"A. Дэд бүтэц",null,null,{"$f":"'Алхам 2. Хэмжих хүснэгт'!D32*'Алхам 2. Хэмжих хүснэгт'!E33","v":{"v":0,"d":"0.0%"}},{"$f":"AVERAGE(G64:G65)","v":0},{"$f":"SUM($H$64:$H$65)","v":0}]
[{"$nulls":3},"Төслийг хэрэгжүүлэхэд шаардлагатай суурь байгууламжууд, технологийн боломж бий юу? ",null,{"$f":"F$63/2","v":{"v":0,"d":"0.0%"}},{"$f":"'Алхам 3. Үнэлгээний хүснэгт'!I72","v":0},{"$f":"G64*F64","v":0}]
[{"$nulls":3}," Төслийг танилцуулахдаа суурь байгууламжууд болон технологиор хангах боломжтой юу?",null,{"$f":"F$63/2","v":{"v":0,"d":"0.0%"}},{"$f":"'Алхам 3. Үнэлгээний хүснэгт'!I73","v":0},{"$f":"G65*F65","v":0}]
[null,null,"B. Нийгмийн орчин",null,null,{"$f":"'Алхам 2. Хэмжих хүснэгт'!D32*'Алхам 2. Хэмжих хүснэгт'!E34","v":{"v":0,"d":"0.0%"}},{"$f":"AVERAGE(G67:G68)","v":0},{"$f":"SUM($H$67:$H$68)","v":0}]
[{"$nulls":3},"Орчин үеийн стандарт нормууд бий эсэх, олон нийтийн зүгээс шинэ төслийг хүлээн авч чадах эсэх?",null,{"$f":"F$66/2","v":{"v":0,"d":"0.0%"}},{"$f":"'Алхам 3. Үнэлгээний хүснэгт'!I76","v":0},0]
[{"$nulls":3},"Манлайлагчдын санал бодол оролцоотойгоор олон нийтийг татан оролцуулж дэмжлэг авах боломжтой юу?",null,{"$f":"F$66/2","v":{"v":0,"d":"0.0%"}},{"$f":"'Алхам 3. Үнэлгээний хүснэгт'!I77","v":0},0]
[null,null,"C. Улс төрийн орчин",null,null,{"$f":"'Алхам 2. Хэмжих хүснэгт'!D32*'Алхам 2. Хэмжих хүснэгт'!E35","v":{"v":1,"d":"100.0%"}},{"$f":"AVERAGE(G70:G71)","v":0},{"$f":"SUM(H70:H71)","v":0}]
[{"$nulls":3},"Төслийг хэрэгжүүлэхэд засгийн газрын өндөр  албаны хүмүүсийн зүгээс болон улс төрийн нам бүхий  улс төрийн бүлгийн дэмжлэгийг авч чадах уу?",null,{"$f":"F$69/2","v":{"v":0.5,"d":"50.0%"}},{"$f":"'Алхам 3. Үнэлгээний хүснэгт'!I80","v":0},0]
[{"$nulls":3},"Улс төрийн бүлгийн дэмжлэг байхгүй, эсвэл дулимаг байсан ч төслийг тогтвортой үргэлжүүлэх боломжтой юу?",null,{"$f":"F$69/2","v":{"v":0.5,"d":"50.0%"}},{"$f":"'Алхам 3. Үнэлгээний хүснэгт'!I81","v":0},0]
[]
[null,6,"Нийт",null,{"$f":"SUM(E12,E21,E39,E54,E61)","v":{"v":1,"d":"100.0%"}},{"$nulls":3},{"$f":"SUM(I12,I21,I39,I54,I61)","v":0}]
[]
[]
[]
[{"$nulls":3},"                     Хэрэгслийн үр дүнг ойлгох, тайлбарлах "]
[]
[{"$nulls":3},"Та одоо Хэрэгслийг дуусгалаа. Танд  баяр хүргэе. Үлдсэн даалгавар бол хүрсэн үр дүндээ дүн шинжилгээ хийх, тайлбарлах явдал юм. Доорх тайлбар нь таны үр дүнг ойлгоход туслана. "]
[]
[]
[]
[]
[]
[{"$nulls":3},"Хэрэгсэл нь танд хоёр үндсэн үр дүнд хүрэх боломжийг олгодог:"]
{"$rows_empty":12}
[{"$nulls":3},"Доод талд байгаа нийт оноог 1 -ээс 4 хүртэлх тоо болон хувиар илэрхийлнэ. Энэ тоо 4 эсвэл 100% -д ойртох тусам танай хотод сонгосон практик туршлагыг нутагшуулах магадлал өндөр байх болно."]
[]
[]
[{"$nulls":3},"Ерөнхий дүрмээр бол нийт оноо 2.5 буюу ~60% -аас дээш байвал сонгосон туршлага амжилттай хэрэгжих үндэслэлтэй гэж үздэг. Энэхүү босгон дээр энэхүү төслийг хэрэгжүүлэхий өмнө зайлшгүй анхааралдаа авах зүйлүүд бий. "]
[]
[]
[]
[]
[{"$nulls":3},"Хэрэгсэл нь гол хэмжигдэхүүн тус бүрт нийт 5 \" хэсгийн оноо\" өгдөг. Нийт онооны нэгэн адил эдгээр оноог 1- ээс 4 хүртэлх оноо , хувь дээр үндэслэсэн. Энэ тоо 4- тэй ойр байх тусам танай хотод сонгосон практикийг нутагшуулах нь энэхүү тодорхой хэмжигдэхүүний дагуу амжилттай болох магадлал өндөр болно. "]
[]
[]
[]
[]
[]
[]
[null,null," ","Ерөнхий дүрмээр бол гол үзүүлэлт нь түүний оноо 2.5 буюу ~60% -аас дээш байвал сонгосон шилдэг туршлагыг хэрэгжүүлэх давуу тал боломж байн гэж үздэг. Энэхүү босго онооны үзүүлэлтүүдийг анхааралдаа авч хандахгүй бол төслийг амжилттай нутагшуулах магадлалыг бууруулах сул тал болохыг үгүйсгэхгүй. "]

{"sheet":"Тайлан хэвлэх","index":13,"n_rows":154,"n_cols":10,"rows_kept":154,"merged":[[7,2,7,8],[8,7,8,9],[9,7,9,9],[11,6,11,7],[11,8,11,9],[12,7,12,9],[13,7,13,9],[14,7,14,9],[16,2,16,9],[17,2,17,8],[18,2,18,4],[20,2,20,4],[20,5,23,5],[20,6,20,8],[21,3,21,4],[22,2,23,2],[22,3,22,4],[23,3,23,4],[24,2,24,8],[26,2,26,4],[26,5,29,5],[26,6,26,8],[27,2,29,2],[27,3,27,4],[28,3,28,4],[29,3,29,4],[30,2,30,8],[32,2,32,4],[32,5,36,5],[32,6,32,8],[33,2,36,2],[33,3,33,4],[34,3,34,4],[35,3,35,4],[36,3,36,4],[37,2,37,8],[39,2,39,4],[39,5,41,5],[39,6,39,8],[40,2,41,2],[40,3,40,4],[41,3,41,4],[42,2,42,8],[44,2,44,4],[44,5,47,5],[44,6,44,8],[45,2,47,2],[45,3,45,4],[46,3,46,4],[47,3,47,4],[48,2,48,8],[49,3,49,4],[50,2,50,8],[53,4,53,7],[56,4,57,4],[74,4,77,4],[80,4,84,4],[88,4,92,4],[144,5,144,8],[145,5,145,8],[146,5,146,8],[147,5,147,8],[148,5,148,8],[149,5,149,8],[150,5,150,8],[151,5,151,8],[152,5,152,8],[153,5,153,8]]}
{"$rows_empty":8}
[{"$nulls":5},"Сайн туршлагад  дүн шинжилгээ хийсэн",null,{"$f":"'Холбоо барих'!G25","v":0}]
[{"$nulls":7},{"$f":"'Холбоо барих'!G26","v":0}]
[]
[{"$nulls":5},"Илтгэсэн",{"$f":"'Холбоо барих'!G18","v":0},null,{"$f":"'Холбоо барих'!G19","v":0}]
[{"$nulls":7},{"$f":"'Холбоо барих'!G23","v":0}]
[{"$nulls":7},{"$f":"'Холбоо барих'!G22","v":0}]
[{"$nulls":7},{"$f":"'Холбоо барих'!G21","v":0}]
[]
[null,null,"Нутагшуулах хэрэгсэл/ Онооны дэлгэрэнгүй задаргаа"]
[]
[{"$nulls":5},"Эзлэх хувь\n(Төвшин 1)","Эзлэх хувь\n(Төвшин 2)","Дундаж үнэлгээ","Оноо\n(4 хүртэл)","Оноо\n(%)"]
[null,null,1,"Төслийн мөн чанар",null,{"$f":"'Алхам 4. Онооны хүснэгт,дэлгэрэ'!E12","v":{"v":0,"d":"0.0%"}},null,null,{"$f":"'Алхам 4. Онооны хүснэгт,дэлгэрэ'!H12","v":{"$error":"#DIV/0!"}},{"$f":"(I20/4)","v":{"$error":"#DIV/0!"}}]
[]
[{"$nulls":3},"A. Ач холбогдол",null,null,{"$f":"'Алхам 2. Хэмжих хүснэгт'!E13","v":{"v":0,"d":"0.0%"}},{"$f":"'Алхам 4. Онооны хүснэгт,дэлгэрэ'!G14","v":0}]
[{"$nulls":3},"B. Ил тод байдал",null,null,{"$f":"'Алхам 2. Хэмжих хүснэгт'!E14","v":{"v":0,"d":"0.0%"}},{"$f":"'Алхам 4. Онооны хүснэгт,дэлгэрэ'!G16","v":0}]
[{"$nulls":3},"C. Тогтвортой байдал",null,null,{"$f":"'Алхам 2. Хэмжих хүснэгт'!E15","v":{"v":1,"d":"100.0%"}},{"$f":"'Алхам 4. Онооны хүснэгт,дэлгэрэ'!G18","v":0}]
[]
[null,null,2,"Оролцогчид",null,{"$f":"'Алхам 4. Онооны хүснэгт,дэлгэрэ'!E21","v":{"v":0,"d":"0.0%"}},null,null,{"$f":"'Алхам 4. Онооны хүснэгт,дэлгэрэ'!H21","v":{"$error":"#DIV/0!"}},{"$f":"(I26/4)","v":{"$error":"#DIV/0!"}}]
[]
[{"$nulls":3},"A. Хэрэгжүүлэгч агентлагын төслийн мэргэжилтнүүд",null,null,{"$f":"'Алхам 2. Хэмжих хүснэгт'!E18","v":{"v":0,"d":"0.0%"}},{"$f":"'Алхам 4. Онооны хүснэгт,дэлгэрэ'!G23","v":0}]
[{"$nulls":3},"B. Манлайлал",null,null,{"$f":"'Алхам 2. Хэмжих хүснэгт'!E19","v":{"v":0,"d":"0.0%"}},{"$f":"'Алхам 4. Онооны хүснэгт,дэлгэрэ'!G29","v":0}]
[{"$nulls":3},"C. Нөлөөллийн бүлэг/Зорилтот хүн ам",null,null,{"$f":"'Алхам 2. Хэмжих хүснэгт'!E20","v":{"v":1,"d":"100.0%"}},{"$f":"'Алхам 4. Онооны хүснэгт,дэлгэрэ'!G33","v":0}]
[]
[null,null,3,"Нөөц",null,{"$f":"'Алхам 4. Онооны хүснэгт,дэлгэрэ'!E39","v":{"v":0,"d":"0.0%"}},{"v":0,"d":"0.0%"},null,{"$f":"'Алхам 4. Онооны хүснэгт,дэлгэрэ'!H39","v":{"$error":"#DIV/0!"}},{"$f":"(I32/4)","v":{"$error":"#DIV/0!"}}]
[]
[{"$nulls":3},"A. Хүний нөөц",null,null,{"$f":"'Алхам 2. Хэмжих хүснэгт'!E23","v":{"v":0,"d":"0.0%"}},{"$f":"'Алхам 4. Онооны хүснэгт,дэлгэрэ'!G41","v":0}]
[{"$nulls":3},"B. Санхүүгийн нөөц",null,null,{"$f":"'Алхам 2. Хэмжих хүснэгт'!E24","v":{"v":0,"d":"0.0%"}},{"$f":"'Алхам 4. Онооны хүснэгт,дэлгэрэ'!G44","v":0}]
[{"$nulls":3},"C. Технологи",null,null,{"$f":"'Алхам 2. Хэмжих хүснэгт'!E25","v":{"v":0,"d":"0.0%"}},{"$f":"'Алхам 4. Онооны хүснэгт,дэлгэрэ'!G47","v":0}]
[{"$nulls":3},"D. Мэдээлэл",null,null,{"$f":"'Алхам 2. Хэмжих хүснэгт'!E26","v":{"v":1,"d":"100.0%"}},{"$f":"'Алхам 4. Онооны хүснэгт,дэлгэрэ'!G50","v":0}]
[]
[null,null,4,"Зохицуулалтын хүрээ",null,{"$f":"'Алхам 4. Онооны хүснэгт,дэлгэрэ'!E54","v":{"v":0,"d":"0.0%"}},null,null,{"$f":"'Алхам 4. Онооны хүснэгт,дэлгэрэ'!H54","v":{"$error":"#DIV/0!"}},{"$f":"(I39/4)","v":{"$error":"#DIV/0!"}}]
[]
[{"$nulls":3},"A. Хууль тогтоомж",null,null,{"$f":"'Алхам 2. Хэмжих хүснэгт'!E29","v":{"v":0,"d":"0.0%"}},{"$f":"'Алхам 4. Онооны хүснэгт,дэлгэрэ'!G56","v":0}]
[{"$nulls":3},"B. Дэмжлэг",null,null,{"$f":"'Алхам 2. Хэмжих хүснэгт'!E30","v":{"v":1,"d":"100.0%"}},{"$f":"'Алхам 4. Онооны хүснэгт,дэлгэрэ'!G58","v":0}]
[]
[null,null,5,"Төслийн орчин",null,{"$f":"'Алхам 4. Онооны хүснэгт,дэлгэрэ'!E61","v":{"v":1,"d":"100.0%"}},null,null,{"$f":"'Алхам 4. Онооны хүснэгт,дэлгэрэ'!H61","v":0},{"$f":"(I44/4)","v":{"v":0,"d":"0.00%"}}]
[]
[{"$nulls":3},"A. Дэд бүтэц",null,null,{"$f":"'Алхам 2. Хэмжих хүснэгт'!E33","v":{"v":0,"d":"0.0%"}},{"$f":"'Алхам 4. Онооны хүснэгт,дэлгэрэ'!G63","v":0}]
[{"$nulls":3},"B. Нийгмийн орчин",null,null,{"$f":"'Алхам 2. Хэмжих хүснэгт'!E34","v":{"v":0,"d":"0.0%"}},{"$f":"'Алхам 4. Онооны хүснэгт,дэлгэрэ'!G66","v":0}]
[{"$nulls":3},"C. Улс төрийн орчин ",null,null,{"$f":"'Алхам 2. Хэмжих хүснэгт'!E35","v":{"v":1,"d":"100.0%"}},{"$f":"'Алхам 4. Онооны хүснэгт,дэлгэрэ'!G69","v":0}]
[]
[null,null,6,"Нийт ОНОО",null,{"$f":"SUM(F20,F26,F32,F39,F44)","v":{"v":1,"d":"100.0%"}},null,null,{"$f":"'Алхам 4. Онооны хүснэгт,дэлгэрэ'!I73","v":0},{"$f":"(I50/4)","v":{"v":0,"d":"0.00%"}}]
[]
[]
[]
[{"$nulls":4},"                     Хэрэгслийн үр дүнг ойлгох, тайлбарлах "]
[]
[]
[{"$nulls":4},"Та одоо Хэрэгслийг дуусгалаа. Танд  баяр хүргэе. Үлдсэн даалгавар бол хүрсэн үр дүндээ дүн шинжилгээ хийх, тайлбарлах явдал юм. Доорх тайлбар нь таны үр дүнг ойлгоход туслана."]
[]
[]
[{"$nulls":4},"Хэрэгсэл нь танд хоёр үндсэн үр дүнд хүрэх боломжийг олгодог:"]
{"$rows_empty":11}
[{"$nulls":4},"Доод талд байгаа нийт оноог 1 -ээс 4 хүртэлх тоо болон хувиар илэрхийлнэ. Энэ тоо 4 эсвэл 100% -д ойртох тусам танай хотод сонгосон практик туршлагыг нутагшуулах магадлал өндөр байх болно."]
[]
[]
[{"$nulls":4},"Ерөнхий дүрмээр бол нийт оноо 2.5 буюу ~60% -аас дээш байвал сонгосон туршлага амжилттай хэрэгжих үндэслэлтэй гэж үздэг. Энэхүү босгон дээр энэхүү төслийг хэрэгжүүлэхий өмнө зайлшгүй анхааралдаа авах зүйлүүд бий. "]
[]
[]
[]
[]
[]
[{"$nulls":4},"Хэрэгсэл нь гол хэмжигдэхүүн тус бүрт нийт 5 \" хэсгийн оноо\" өгдөг. Нийт онооны нэгэн адил эдгээр оноог 1- ээс 4 хүртэлх оноо , хувь дээр үндэслэсэн. Энэ тоо 4- тэй ойр байх тусам танай хотод сонгосон практикийг нутагшуулах нь энэхүү тодорхой хэмжигдэхүүний дагуу амжилттай болох магадлал өндөр болно. "]
{"$rows_empty":7}
[{"$nulls":4},"Ерөнхий дүрмээр бол гол үзүүлэлт нь түүний оноо 2.5 буюу ~60% -аас дээш байвал сонгосон шилдэг туршлагыг хэрэгжүүлэх давуу тал боломж байн гэж үздэг. Энэхүү босго онооны үзүүлэлтүүдийг анхааралдаа авч хандахгүй бол төслийг амжилттай нутагшуулах магадлалыг бууруулах сул тал болохыг үгүйсгэхгүй. "]
[]
[]
[]
[]
[]
[null,null," "]
{"$rows_empty":47}
[{"$nulls":4},"CREDITS"]
[]
[{"$nulls":4},"RESEARCH & CONTENT DEVELOPMENT","TOOLKIT's EXCEL PROGRAM DEVELOPMENT"]
[{"$nulls":4},"KEVIN DROUIN","KEVIN DROUIN"]
[{"$nulls":4},"Program Officer, CityNet","Program Officer, CityNet"]
[]
[{"$nulls":4},"DR. HYEON PARK","CONTRIBUTORS (Editors): CityNet Secretariat Programs Team"]
[{"$nulls":4},"Dean and Professor, University of Seoul, International School of Urban Sciences","Youngmin Chang, Director of Programs"]
[{"$nulls":5},"Jaime Paulo Mora, Senior Program Officer"]
[{"$nulls":4},"DR. HONGSEOG GOH","Megan Chow, Program Officer"]
[{"$nulls":4},"Visiting Professor, University of Seoul, International School of Urban Sciences","Danbee Lee, Program Officer"]
[{"$nulls":4},"CityNet Secretariat","Hui Qian, Program Officer"]